bitfinex/quotes_ETHUSD_20250824
["timestamp","ask_amount","ask_price","bid_price","bid_amount"]
[1756061335386,0.66,4947.5,4947.3,0.001]
[1756061335983,0.1008,4947.6,4947.3,0.001]
[1756061336193,0.1008,4947.6,4947.4,0.2918]
[1756061336565,0.66,4948.3,4947.4,0.2918]
[1756061336752,0.66,4947.9,4947.4,0.2918]
[1756061337503,0.66,4947.9,4947.3,0.001]
[1756061337504,0.66,4947.7,4947.3,0.001]
[1756061337664,0.66,4947.5,4947.3,0.001]
[1756061338200,0.9622,4947.4,4947.3,0.001]
[1756061338393,1.3903,4947.4,4947.3,0.001]
[1756061338573,0.9622,4947.4,4947.3,0.001]
[1756061339561,1.12043933,4947.4,4947.3,0.001]
[1756061339797,1.54853933,4947.4,4947.3,0.001]
[1756061340765,5.24453933,4947.4,4947.3,0.001]
[1756061341664,5.24453933,4947.4,4944.9,16.61124083]
[1756061341867,5.24453933,4947.4,4945.3,0.0008]
[1756061341868,1.0881,4947.3,4945.3,0.0008]
[1756061342202,0.66,4947.1,4946.3,0.001]
[1756061342411,0.9622,4946.4,4946.3,0.001]
[1756061342599,4.6572,4946.4,4946.3,0.001]
[1756061342792,5.0853,4946.4,4946.3,0.001]
[1756061344609,5.0853,4946.4,4944.8,0.001]
[1756061344610,3.66,4946.3,4944.8,0.001]
[1756061344952,0.66,4944.8,4944.7,0.001]
[1756061345232,6.2092,4944.8,4944.7,0.001]
[1756061345438,6.6373,4944.8,4944.7,0.001]
[1756061346748,2.9433,4944.8,4944.7,0.001]
[1756061347026,9.93163,4944.8,4944.7,0.001]
[1756061349796,10.03243,4944.8,4944.7,0.001]
[1756061350530,6.33843,4944.8,4944.7,0.001]
[1756061350738,2.2833,4944.8,4944.7,0.001]
[1756061350898,2.3851,4944.8,4944.7,0.001]
[1756061351099,6.0781,4944.8,4944.7,0.001]
[1756061351334,6.7381,4944.8,4944.7,0.001]
[1756061351634,3.66,4944.7,4944.3,0.001]
[1756061351800,1.073,4944.4,4944.3,0.001]
[1756061352203,0.7608,4944.4,4944.3,0.001]
[1756061352731,3.7948,4944.4,4944.3,0.001]
[1756061352904,0.1008,4944.4,4944.3,0.0843]
[1756061353729,0.1008,4944.4,4944.3,0.001]
[1756061354053,0.63568,4944.4,4944.3,0.001]
[1756061354905,0.1008,4944.4,4944.3,0.0843]
[1756061355341,0.1008,4944.5,4944.3,0.0843]
[1756061356146,0.66,4944.4,4944.3,0.001]
[1756061356664,1.4151,4944.4,4944.3,0.001]
[1756061358445,8.1081,4944.4,4944.3,0.001]
[1756061358746,9.37431,4944.4,4944.3,0.001]
[1756061359257,1.92621,4944.4,4944.3,0.001]
[1756061359549,4.353,4944.4,4944.3,0.001]
[1756061359921,4.352,4944.4,4944.3,0.001]
[1756061360548,5.1071,4944.4,4944.3,0.001]
[1756061360750,0.66,4944.3,4943.3,0.001]
[1756061360936,0.9722,4943.4,4943.3,0.001]
[1756061361136,5.906,4943.4,4943.3,0.001]
[1756061361662,7.2517,4943.4,4943.3,0.001]
[1756061362052,10.2517,4943.4,4943.3,0.001]
[1756061362219,3.66,4943.3,4940.8,0.001]
[1756061362657,0.66,4943.1,4940.8,0.001]
[1756061362815,0.66,4942.9,4941.0,0.054]
[1756061363009,0.66,4942.9,4940.8,0.001]
[1756061363010,0.66,4942.7,4940.8,0.001]
[1756061363483,0.66,4943.3,4941.5,0.054]
[1756061363772,0.66,4943.3,4942.6,0.0865]
[1756061363773,0.66,4942.7,4942.6,0.0865]
[1756061363967,4.351,4942.7,4942.6,0.0865]
[1756061364141,0.4429,4944.2,4942.6,0.0865]
[1756061364339,3.691,4944.7,4942.7,0.054]
[1756061364565,3.691,4944.8,4942.7,0.054]
[1756061365033,1.555,4945.3,4942.7,0.054]
[1756061365240,1.555,4945.3,4943.2,3.0]
[1756061365440,1.555,4945.3,4943.3,1.609]
[1756061365781,1.555,4945.3,4943.4,0.054]
[1756061366438,0.1008,4944.6,4943.9,0.1008]
[1756061366638,0.1008,4944.6,4944.5,0.0865]
[1756061368066,0.1008,4945.0,4944.5,0.0865]
[1756061368640,1.555,4946.0,4944.6,0.054]
[1756061368841,1.555,4946.7,4945.9,0.0865]
[1756061369066,0.1008,4946.0,4945.9,0.0865]
[1756061369239,0.1555,4946.7,4945.9,0.0865]
[1756061369240,0.1008,4946.3,4945.9,0.0865]
[1756061369439,0.1008,4946.6,4945.9,0.2413]
[1756061369672,0.1008,4947.1,4946.2,0.1008]
[1756061371575,3.689,4947.6,4945.5,0.10145913]
[1756061371774,0.66,4946.2,4945.6,0.1008]
[1756061372574,0.1008,4945.8,4945.1,0.1008]
[1756061372767,0.1008,4946.3,4945.7,0.0865]
[1756061373443,0.1008,4946.3,4945.6,0.1008]
[1756061373775,0.1008,4945.9,4944.6,4.555]
[1756061373978,0.1008,4945.9,4945.2,0.1008]
[1756061375164,1.555,4946.8,4944.6,4.555]
[1756061375165,0.66,4945.8,4944.6,0.1008]
[1756061375366,0.4429,4946.1,4943.9,0.10194641]
[1756061375569,0.1008,4944.9,4944.2,0.1008]
[1756061376180,0.66,4946.0,4944.8,0.0865]
[1756061376482,1.9969,4946.6,4943.8,1.555]
[1756061376483,0.66,4944.8,4943.8,0.001]
[1756061376781,0.1008,4944.6,4943.9,0.1008]
[1756061379361,0.66,4944.5,4943.8,0.001]
[1756061379567,0.1008,4944.1,4943.8,0.001]
[1756061381368,0.9454,4943.9,4943.8,0.001]
[1756061381585,1.24879,4943.9,4943.8,0.001]
[1756061381759,1.68249,4943.9,4943.8,0.001]
[1756061383226,5.36649,4943.9,4943.8,0.001]
[1756061383359,1.68249,4943.9,4943.8,0.001]
[1756061383706,1.78329,4943.9,4943.8,0.001]
[1756061387702,5.46629,4943.9,4943.8,0.001]
[1756061387911,5.1619,4943.9,4943.8,0.001]
[1756061391174,1.4799,4943.9,4943.8,0.001]
[1756061391498,5.1619,4943.9,4943.8,0.001]
[1756061392275,3.681,4943.9,4943.8,0.001]
[1756061392475,3.7818,4943.9,4943.8,0.001]
[1756061393212,4.8755,4943.9,4943.8,0.001]
[1756061393386,1.1945,4943.9,4943.8,0.001]
[1756061393590,4.4418,4943.9,4943.8,0.001]
[1756061393788,0.7608,4943.9,4943.8,0.001]
[1756061393988,5.39238,4943.9,4943.8,0.001]
[1756061397904,1.71138,4943.9,4943.8,0.001]
[1756061398205,5.39038,4943.9,4943.8,0.001]
[1756061399204,1.71138,4943.9,4943.8,0.001]
[1756061399509,5.39038,4943.9,4943.8,0.001]
[1756061399711,1.71138,4943.9,4943.8,0.001]
[1756061399904,5.38938,4943.9,4943.8,0.001]
[1756061400104,4.67028,4943.9,4943.8,0.001]
[1756061400306,5.38938,4943.9,4943.8,0.001]
[1756061400817,1.71138,4943.9,4943.8,0.001]
[1756061400979,5.38938,4943.9,4943.8,0.001]
[1756061401573,0.66,4943.8,4942.8,0.001]
[1756061401776,1.0462,4943.4,4942.8,0.001]
[1756061401976,6.2792,4943.4,4942.8,0.001]
[1756061402213,0.66,4943.3,4942.8,0.001]
[1756061402414,0.9454,4942.9,4942.8,0.001]
[1756061402705,5.14688046,4942.9,4942.8,0.001]
[1756061402906,6.23943851,4942.9,4942.8,0.001]
[1756061403302,6.23843851,4942.9,4942.8,0.001]
[1756061403612,1.28428046,4942.9,4942.8,0.001]
[1756061403778,4.30128046,4942.9,4942.8,0.001]
[1756061403981,4.96128046,4942.9,4942.8,0.001]
[1756061405104,5.68038046,4942.9,4942.8,0.001]
[1756061408014,3.66,4942.8,4942.3,0.001]
[1756061408188,0.9454,4942.4,4942.3,0.001]
[1756061408409,3.66,4942.3,4941.8,0.001]
[1756061408608,0.9454,4941.9,4941.8,0.001]
[1756061408806,1.0462,4941.9,4941.8,0.001]
[1756061409011,5.1791,4941.9,4941.8,0.001]
[1756061409213,5.99701,4941.9,4941.8,0.001]
[1756061409831,2.32201,4941.9,4941.8,0.001]
[1756061410033,5.99701,4941.9,4941.8,0.001]
[1756061410330,2.32201,4941.9,4941.8,0.001]
[1756061410529,5.99701,4941.9,4941.8,0.001]
[1756061410832,5.90661,4941.9,4941.8,0.001]
[1756061411528,2.23161,4941.9,4941.8,0.001]
[1756061411731,5.90561,4941.9,4941.8,0.001]
[1756061412089,1.57871,4941.9,4941.8,0.001]
[1756061412342,3.7748,4941.9,4941.8,0.001]
[1756061412499,0.1008,4941.9,4941.8,0.001]
[1756061412694,3.7748,4941.9,4941.8,0.001]
[1756061412899,3.7748,4941.9,4941.8,0.2385]
[1756061413302,3.7748,4941.9,4941.8,0.001]
[1756061413500,5.58528,4941.9,4941.8,0.001]
[1756061414098,1.91128,4941.9,4941.8,0.001]
[1756061414404,5.58528,4941.9,4941.8,0.001]
[1756061415401,5.58428,4941.9,4941.8,0.001]
[1756061417002,1.91128,4941.9,4941.8,0.001]
[1756061417199,5.58428,4941.9,4941.8,0.001]
[1756061417599,8.58428,4941.9,4941.8,0.001]
[1756061418606,8.58328,4941.9,4941.8,0.001]
[1756061421028,1.15048,4941.9,4941.8,0.001]
[1756061421230,3.7718,4941.9,4941.8,0.001]
[1756061422104,4.4318,4941.9,4941.8,0.001]
[1756061422305,0.1008,4941.9,4941.8,0.2385]
[1756061422533,3.7718,4941.9,4941.8,0.001]
[1756061422936,4.14898,4941.9,4941.8,0.001]
[1756061423141,4.80898,4941.9,4941.8,0.001]
[1756061423509,1.13798,4941.9,4941.8,0.001]
[1756061423736,4.4308,4941.9,4941.8,0.001]
[1756061423942,8.2038,4941.9,4941.8,0.001]
[1756061424159,8.2038,4941.9,4940.8,0.001]
[1756061424160,33.66,4941.8,4940.8,0.001]
[1756061424442,1.0759,4940.9,4940.8,0.001]
[1756061424606,9.3019,4940.9,4940.8,0.001]
[1756061424806,10.68999,4940.9,4940.8,0.001]
[1756061425319,10.87870764,4940.9,4940.8,0.001]
[1756061425509,11.31367549,4940.9,4940.8,0.001]
[1756061425714,7.64367549,4940.9,4940.8,0.001]
[1756061425923,11.31267549,4940.9,4940.8,0.001]
[1756061426438,10.87770764,4940.9,4940.8,0.001]
[1756061426808,10.77690764,4940.9,4940.8,0.001]
[1756061427037,10.68899,4940.9,4940.8,0.001]
[1756061427446,10.87774037,4940.9,4940.8,0.001]
[1756061427653,10.87774837,4940.9,4940.8,0.001]
[1756061427850,9.91599,4940.9,4940.8,0.001]
[1756061428020,1.6568,4940.9,4940.8,0.001]
[1756061428211,5.3258,4940.9,4940.8,0.2385]
[1756061428734,5.3258,4940.9,4940.8,0.001]
[1756061428735,5.3248,4940.9,4940.8,0.001]
[1756061429044,8.884,4940.9,4940.8,0.001]
[1756061429239,9.7724,4940.9,4940.8,0.001]
[1756061429441,3.1044,4940.9,4940.8,0.001]
[1756061429645,5.885,4940.9,4940.8,0.001]
[1756061430046,8.885,4940.9,4940.8,0.001]
[1756061430254,6.61307539,4940.9,4940.8,0.001]
[1756061430451,8.884,4940.9,4940.8,0.001]
[1756061430954,9.657,4940.9,4940.8,0.001]
[1756061431167,6.9547,4940.9,4940.8,0.001]
[1756061431362,6.6396,4940.9,4940.8,0.001]
[1756061431538,10.3076,4940.9,4940.8,0.001]
[1756061431866,10.6227,4940.9,4940.8,0.001]
[1756061432364,6.6396,4940.9,4940.8,0.001]
[1756061432560,6.1817,4940.9,4940.8,0.001]
[1756061432727,2.5217,4940.9,4940.8,0.001]
[1756061432920,1.556,4940.9,4940.8,0.2385]
[1756061433146,5.883,4940.9,4940.8,0.001]
[1756061433361,6.656,4940.9,4940.8,0.001]
[1756061433678,6.656,4940.9,4940.3,0.004]
[1756061433679,3.66,4940.8,4940.3,0.004]
[1756061433821,0.9751,4940.4,4940.3,0.004]
[1756061434164,7.83104966,4940.4,4940.3,0.004]
[1756061434525,8.28894966,4940.4,4940.3,0.004]
[1756061435592,8.72431464,4940.4,4940.3,0.004]
[1756061435894,3.66,4940.3,4939.9,0.004]
[1756061436060,3.66,4940.1,4939.9,0.004]
[1756061436262,7.81933247,4939.9,4939.8,0.004]
[1756061436457,8.44364711,4939.9,4939.8,0.004]
[1756061436691,6.41931464,4939.9,4939.8,0.004]
[1756061437193,8.44372936,4939.9,4939.8,0.004]
[1756061437393,40.47507299,4939.9,4939.8,0.004]
[1756061437563,44.14107299,4939.9,4939.8,0.004]
[1756061438162,44.14107299,4939.9,4935.0,0.25]
[1756061438163,0.66,4939.6,4935.0,0.25]
[1756061438363,3.66,4938.9,4935.0,0.25]
[1756061438580,3.66,4938.7,4935.0,0.25]
[1756061438892,0.1016,4935.6,4935.0,0.25]
[1756061439188,0.66,4936.1,4935.0,0.25]
[1756061439393,3.666,4936.0,4935.0,0.25]
[1756061439731,3.665,4936.0,4935.4,0.1016]
[1756061439914,0.1016,4936.5,4935.8,0.1016]
[1756061440083,3.665,4936.4,4935.8,0.1016]
[1756061440593,0.1016,4936.5,4935.8,0.1016]
[1756061440793,3.665,4936.7,4936.2,0.1016]
[1756061441334,5.222,4936.8,4936.2,0.1016]
[1756061441681,1.556,4936.8,4936.2,0.1016]
[1756061442325,5.221,4936.8,4936.2,0.1016]
[1756061442523,1.556,4936.8,4936.2,0.1016]
[1756061442722,0.1016,4936.9,4936.2,0.1016]
[1756061442912,2.216,4937.5,4935.5,3.0]
[1756061443112,3.665,4937.1,4936.5,0.1016]
[1756061444915,2.216,4937.5,4935.5,3.0]
[1756061444916,1.556,4937.5,4935.9,1.557]
[1756061445091,1.6576,4937.5,4936.8,0.1016]
[1756061445293,0.1016,4937.5,4936.8,0.1016]
[1756061445657,3.7656,4937.9,4937.2,0.1016]
[1756061446155,0.66,4938.2,4935.9,1.557]
[1756061446295,0.1016,4937.2,4936.5,0.1016]
[1756061446495,3.7656,4937.2,4936.5,0.1016]
[1756061448148,0.1016,4937.2,4936.5,0.1016]
[1756061448327,1.557,4938.3,4936.0,3.1557]
[1756061448648,1.557,4938.3,4937.1,0.1016]
[1756061448649,3.663,4938.2,4937.1,0.1016]
[1756061448826,3.663,4938.2,4936.8,3.0]
[1756061448827,3.663,4938.2,4937.7,0.1016]
[1756061449710,1.557,4938.3,4937.7,0.1016]
[1756061450645,0.1016,4938.4,4937.7,0.1016]
[1756061451247,0.54384494,4941.6,4936.8,4.557]
[1756061451426,0.1016,4938.9,4938.2,0.1016]
[1756061453647,0.1016,4939.3,4938.6,0.1016]
[1756061453848,0.66,4939.2,4937.7,0.1016]
[1756061454038,0.1016,4938.4,4937.7,0.1016]
[1756061454218,3.7626,4938.4,4937.7,0.1016]
[1756061454424,0.66,4938.3,4936.8,1.557]
[1756061454657,0.1016,4938.0,4937.3,0.1016]
[1756061455624,0.66,4938.3,4936.9,0.1557]
[1756061455955,0.1016,4937.7,4937.0,0.1016]
[1756061460178,0.1016,4937.9,4937.2,3.0]
[1756061461268,0.1016,4937.9,4937.3,0.1016]
[1756061461958,0.1016,4938.3,4937.6,0.1016]
[1756061462977,4.866,4940.8,4938.1,0.1016]
[1756061462978,0.1016,4938.8,4938.1,0.1016]
[1756061464376,0.1016,4939.2,4937.4,3.0]
[1756061464680,1.557,4940.1,4938.7,21.33931947]
[1756061464863,0.1016,4939.6,4939.0,0.1016]
[1756061465247,1.557,4940.1,4939.0,0.1016]
[1756061465443,1.557,4940.1,4938.8,3.0]
[1756061465638,0.1026,4940.4,4939.5,3.0]
[1756061465985,0.1026,4940.4,4939.7,0.1016]
[1756061467577,0.66,4940.3,4938.1,1.557]
[1756061467738,0.66,4939.7,4938.1,0.1022595]
[1756061467938,0.66,4939.7,4937.6,21.33931947]
[1756061467939,0.66,4939.1,4937.6,21.33931947]
[1756061468174,0.1016,4938.9,4938.2,0.1016]
[1756061468770,3.655,4939.1,4938.2,0.1016]
[1756061469092,3.7566,4939.1,4938.2,0.1016]
[1756061469243,0.1016,4939.1,4938.2,0.1016]
[1756061469442,0.66,4939.0,4938.2,0.1016]
[1756061469771,0.1016,4939.1,4938.2,0.1016]
[1756061470369,0.1016,4939.1,4938.5,0.1016]
[1756061474775,0.66,4939.0,4938.5,0.1016]
[1756061475010,0.66,4939.0,4938.2,0.1016]
[1756061475584,3.652,4938.9,4938.2,0.1016]
[1756061476285,0.66,4939.0,4938.2,0.1016]
[1756061476485,4.312,4939.0,4938.2,0.1016]
[1756061477217,3.651,4938.9,4938.2,0.1016]
[1756061478115,0.66,4939.0,4938.2,0.1016]
[1756061478289,3.651,4938.9,4938.2,0.1016]
[1756061478486,3.65,4938.9,4938.2,0.1016]
[1756061480018,0.66,4938.8,4938.2,0.1016]
[1756061480182,0.1016,4938.6,4937.9,0.1016]
[1756061481517,3.649,4938.5,4937.9,0.1016]
[1756061481692,0.1016,4938.6,4937.9,0.1016]
[1756061482720,3.648,4938.9,4938.2,21.33931947]
[1756061482883,3.648,4938.9,4938.2,21.44091947]
[1756061483288,0.1016,4939.1,4938.2,21.44091947]
[1756061483531,0.1016,4939.1,4938.3,3.0]
[1756061484217,1.557,4939.3,4938.3,3.0]
[1756061484218,5.205,4939.3,4938.8,0.1016]
[1756061484845,0.72512659,4942.2,4938.3,3.0]
[1756061484846,1.556,4940.9,4939.0,3.0]
[1756061485014,0.1016,4940.5,4939.8,0.1016]
[1756061485351,0.1016,4940.7,4939.8,0.1016]
[1756061485508,0.1016,4940.7,4939.8,3.1016]
[1756061485935,1.556,4940.9,4939.8,3.0]
[1756061486141,1.556,4940.9,4939.8,3.1016]
[1756061486737,0.1008,4941.3,4939.8,3.1016]
[1756061487315,1.556,4941.6,4939.8,3.1016]
[1756061487632,0.002,4942.9,4939.8,3.1016]
[1756061487633,1.556,4942.4,4939.8,3.0]
[1756061487832,1.556,4942.4,4941.2,3.0]
[1756061488035,1.556,4942.4,4941.8,0.1008]
[1756061489747,0.1008,4942.7,4941.8,0.1008]
[1756061493345,0.66,4942.6,4941.8,0.1008]
[1756061493658,0.1008,4941.9,4941.2,0.1008]
[1756061495931,0.66,4941.8,4941.2,0.1008]
[1756061496133,0.1008,4941.4,4940.7,0.1016]
[1756061497752,0.1008,4941.4,4939.7,1.556]
[1756061497753,0.58291884,4941.9,4938.1,1.556]
[1756061498058,0.66,4940.0,4939.6,0.001]
[1756061498257,0.1016,4939.7,4939.6,0.001]
[1756061498970,0.7616,4939.7,4939.6,0.001]
[1756061499323,1.35736,4939.7,4939.6,0.001]
[1756061499524,4.4006,4939.7,4939.6,0.001]
[1756061499953,0.7616,4939.7,4939.6,0.001]
[1756061500178,4.4006,4939.7,4939.6,0.001]
[1756061501563,4.3996,4939.7,4939.6,0.001]
[1756061503021,0.7616,4939.7,4939.6,0.001]
[1756061503228,4.3986,4939.7,4939.6,0.001]
[1756061503859,4.99406,4939.7,4939.6,0.001]
[1756061505134,0.7616,4939.7,4939.6,0.001]
[1756061505338,3.637,4940.0,4939.6,0.001]
[1756061505553,0.1016,4939.7,4939.6,0.001]
[1756061508544,7.3966,4939.7,4939.6,0.001]
[1756061508744,8.29186,4939.7,4939.6,0.001]
[1756061508941,5.29186,4939.7,4939.6,0.001]
[1756061510061,1.65686,4939.7,4939.6,0.001]
[1756061510257,8.29186,4939.7,4939.6,0.001]
[1756061510943,4.65686,4939.7,4939.6,0.001]
[1756061511147,8.29186,4939.7,4939.6,0.001]
[1756061512247,5.29186,4939.7,4939.6,0.001]
[1756061513046,1.65686,4939.7,4939.6,0.001]
[1756061513247,4.3956,4939.7,4939.6,0.001]
[1756061514535,5.1356,4939.7,4939.6,0.001]
[1756061515169,0.1016,4939.7,4939.6,0.001]
[1756061515377,3.7346,4939.7,4939.6,0.001]
[1756061515673,0.1016,4939.7,4939.6,0.001]
[1756061515844,3.7346,4939.7,4939.6,0.001]
[1756061516045,4.3946,4939.7,4939.6,0.001]
[1756061518961,4.3936,4939.7,4939.6,0.2385]
[1756061519565,4.3926,4939.7,4939.6,0.2385]
[1756061519955,0.1016,4939.7,4939.6,0.2385]
[1756061520357,3.631,4939.7,4939.6,0.2385]
[1756061520659,0.1016,4940.0,4939.6,0.3869]
[1756061520660,3.631,4940.0,4939.6,0.3869]
[1756061520842,1.556,4940.1,4939.6,0.3869]
[1756061520843,3.631,4940.1,4939.7,0.1484]
[1756061521047,0.001,4940.6,4940.0,0.2375]
[1756061521253,0.001,4940.6,4940.2,0.1016]
[1756061521456,0.001,4940.6,4940.5,0.2375]
[1756061525581,3.629,4940.6,4940.5,0.2375]
[1756061526195,3.9223,4940.6,4939.6,0.001]
[1756061526498,3.7306,4940.6,4939.9,0.1016]
[1756061527279,0.1026,4940.6,4939.9,0.1016]
[1756061527472,0.1026,4940.6,4940.5,0.2375]
[1756061527670,3.7296,4940.6,4939.9,0.1016]
[1756061528061,3.7296,4940.6,4939.6,0.1494]
[1756061528062,0.001,4940.6,4940.5,0.2375]
[1756061528256,0.001,4940.6,4940.2,0.1016]
[1756061528594,0.001,4940.6,4939.6,0.001]
[1756061528595,3.627,4940.5,4939.6,0.001]
[1756061529210,3.627,4940.5,4939.9,0.1016]
[1756061530301,0.9533,4940.0,4939.9,0.1016]
[1756061530602,0.66,4939.9,4939.6,0.001]
[1756061530798,0.9533,4939.7,4939.6,0.001]
[1756061531009,1.0549,4939.7,4939.6,0.001]
[1756061531302,1.5016,4939.7,4939.6,0.001]
[1756061532470,4.3866,4939.7,4939.6,0.001]
[1756061533314,4.6733,4939.7,4939.6,0.001]
[1756061533477,5.1039,4939.7,4939.6,0.001]
[1756061533861,5.1029,4939.7,4939.6,0.001]
[1756061534390,5.60798996,4939.7,4939.6,0.001]
[1756061535096,5.60698996,4939.7,4939.6,0.001]
[1756061535269,1.98398996,4939.7,4939.6,0.001]
[1756061535469,5.0003,4939.7,4939.6,0.001]
[1756061535672,1.3773,4939.7,4939.6,0.001]
[1756061535881,5.0003,4939.7,4939.6,0.001]
[1756061536080,4.5697,4939.7,4939.6,0.001]
[1756061536483,5.0003,4939.7,4939.6,0.001]
[1756061536684,5.65593,4939.7,4939.6,0.001]
[1756061537583,5.65493,4939.7,4939.6,0.001]
[1756061538193,2.03293,4939.7,4939.6,0.001]
[1756061538413,4.9993,4939.7,4939.6,0.001]
[1756061538615,4.282,4939.7,4939.6,0.001]
[1756061538910,4.9993,4939.7,4939.6,0.001]
[1756061539273,4.9983,4939.7,4939.6,0.001]
[1756061540515,0.9467,4939.7,4939.6,0.001]
[1756061540813,3.621,4939.7,4939.6,0.001]
[1756061541478,1.556,4939.8,4939.6,0.001]
[1756061541711,1.556,4939.8,4939.6,0.2385]
[1756061541918,1.556,4940.5,4939.6,0.2385]
[1756061542209,3.62,4940.4,4939.6,0.2385]
[1756061542411,1.556,4940.5,4939.6,0.2385]
[1756061542616,3.62,4940.4,4939.6,0.2385]
[1756061542793,1.556,4940.5,4939.6,0.2385]
[1756061542794,3.62,4940.3,4939.6,0.2385]
[1756061542988,3.62,4940.2,4939.6,0.2385]
[1756061544299,3.62,4940.2,4939.8,0.1016]
[1756061545002,1.6576,4940.5,4939.6,0.001]
[1756061545202,3.619,4940.1,4939.6,0.1026]
[1756061545406,3.619,4940.0,4939.6,0.1026]
[1756061545609,1.6576,4940.5,4939.9,0.2375]
[1756061545786,5.175,4940.5,4939.9,0.2375]
[1756061546114,5.175,4940.5,4939.9,0.3391]
[1756061546516,5.175,4940.5,4939.9,0.1016]
[1756061547086,5.175,4940.5,4939.3,0.001]
[1756061547286,5.175,4940.5,4940.0,0.1016]
[1756061547824,1.556,4940.5,4940.0,0.1016]
[1756061548013,3.618,4940.4,4940.0,0.1016]
[1756061548505,3.618,4940.4,4939.5,0.1016]
[1756061548506,0.2867,4940.1,4939.5,0.1016]
[1756061550703,3.617,4940.0,4939.5,0.1016]
[1756061550885,0.1016,4940.2,4939.5,0.1016]
[1756061550886,0.4306,4939.9,4939.5,0.1016]
[1756061551089,0.1016,4940.2,4938.7,0.1016]
[1756061551090,0.2867,4939.6,4938.7,0.1016]
[1756061551325,0.4306,4939.5,4939.0,0.1016]
[1756061551620,3.616,4939.4,4939.0,0.1016]
[1756061551802,3.616,4939.3,4939.0,0.1016]
[1756061553323,3.615,4939.4,4939.2,0.01133317]
[1756061553627,3.615,4939.6,4939.2,0.01133317]
[1756061553824,4.0456,4939.6,4939.3,0.1016]
[1756061553990,0.66,4939.3,4939.2,0.00963317]
[1756061554191,1.0483,4939.3,4939.2,0.00963317]
[1756061554410,1.4789,4939.3,4939.2,0.00963317]
[1756061556032,5.0919,4939.3,4939.2,0.00963317]
[1756061558036,1.4789,4939.3,4939.2,0.00963317]
[1756061558334,4.3746,4939.3,4939.2,0.00963317]
[1756061558733,5.769492,4939.3,4939.2,0.00963317]
[1756061560403,2.156492,4939.3,4939.2,0.00963317]
[1756061560603,5.768492,4939.3,4939.2,0.00963317]
[1756061560908,3.7126,4939.3,4939.2,0.00963317]
[1756061561212,3.611,4939.3,4939.2,0.00963317]
[1756061562213,1.6576,4939.6,4939.2,0.00963317]
[1756061562463,4.9883,4939.3,4939.2,0.00963317]
[1756061562629,5.0899,4939.3,4939.2,0.00963317]
[1756061562833,5.75449,4939.3,4939.2,0.00963317]
[1756061564509,8.75449,4939.3,4939.2,0.00963317]
[1756061564846,3.66,4939.2,4938.7,0.004]
[1756061565014,1.403,4939.2,4938.7,0.004]
[1756061567037,8.012,4939.2,4938.7,0.004]
[1756061567239,9.0535323,4939.2,4938.7,0.004]
[1756061567480,6.0535323,4939.2,4938.7,0.004]
[1756061567671,2.4445323,4939.2,4938.7,0.004]
[1756061567885,5.011,4939.2,4938.7,0.004]
[1756061568634,8.011,4939.2,4938.7,0.004]
[1756061570473,4.351,4939.2,4938.7,0.004]
[1756061570690,4.4526,4939.2,4938.7,0.004]
[1756061570992,5.1126,4939.2,4938.7,0.004]
[1756061571155,5.1116,4939.2,4938.7,0.004]
[1756061571358,5.77846,4939.2,4938.7,0.004]
[1756061573479,5.77746,4939.2,4938.7,0.004]
[1756061573675,2.17146,4939.2,4938.7,0.004]
[1756061573882,5.1106,4939.2,4938.7,0.004]
[1756061574310,1.0538,4939.2,4938.7,0.004]
[1756061574450,5.1106,4939.2,4938.7,0.004]
[1756061575052,0.1016,4939.2,4939.1,0.0181]
[1756061575292,3.7076,4939.2,4939.1,0.0181]
[1756061576082,0.1016,4939.2,4939.1,0.0181]
[1756061576405,3.7066,4939.2,4939.1,0.0181]
[1756061576858,3.7066,4939.2,4939.1,0.001]
[1756061577893,4.4496,4939.2,4939.1,0.001]
[1756061578099,3.7056,4939.2,4939.1,0.001]
[1756061578251,0.1016,4939.2,4939.1,0.0181]
[1756061578452,1.6586,4939.6,4939.1,0.0181]
[1756061578677,3.604,4939.5,4939.1,0.0181]
[1756061578880,1.6586,4939.6,4939.1,0.0181]
[1756061579185,3.604,4939.4,4939.2,0.1016]
[1756061579373,3.604,4939.4,4939.3,0.0171]
[1756061580088,1.557,4939.6,4939.3,0.1294]
[1756061580257,3.603,4939.5,4939.3,0.1187]
[1756061581494,3.603,4939.5,4939.1,0.001]
[1756061581789,1.5046,4939.4,4939.1,0.001]
[1756061582397,3.602,4939.3,4939.1,0.001]
[1756061582560,3.602,4939.2,4939.1,0.001]